bitfinex/quotes_SOLUSD_20241008
["timestamp","ask_amount","ask_price","bid_price","bid_amount"]
[1728401537038,35.1409,142.29,142.14,17.5882]
[1728401537241,0.1070728,142.21,142.14,17.5882]
[1728401537440,7.0334,142.18,142.14,17.5882]
[1728401537743,0.1070728,142.21,142.14,17.5882]
[1728401537946,7.0326,142.2,142.14,24.6231]
[1728401538171,0.1070728,142.21,142.11,23.6862]
[1728401539079,0.1070728,142.21,142.14,17.5878]
[1728401539262,7.0324,142.2,142.15,7.0347]
[1728401540075,0.1070728,142.21,142.14,17.5878]
[1728401540280,7.1389728,142.21,142.16,7.0343]
[1728401540451,0.1070728,142.21,142.17,7.0336]
[1728401540647,0.1070728,142.21,142.18,7.0332]
[1728401540977,0.1070728,142.21,142.17,24.6182]
[1728401541174,0.1070728,142.21,142.18,7.0333]
[1728401541668,0.1070728,142.21,142.12,0.25098]
[1728401541669,7.1392728,142.21,142.16,7.034]
[1728401541896,7.1392728,142.21,142.14,17.5878]
[1728401541897,0.1070728,142.21,142.14,17.5878]
[1728401542071,7.0334,142.18,142.13,7.0357]
[1728401542274,0.1070728,142.21,142.11,23.686]
[1728401542659,0.1070728,142.21,142.13,17.5886]
[1728401542980,7.1389728,142.21,142.16,7.0343]
[1728401543153,0.1070728,142.21,142.15,17.5859]
[1728401543469,0.1070728,142.21,142.13,35.1783]
[1728401543670,0.1070728,142.21,142.18,7.0329]
[1728401543865,0.1070728,142.21,142.14,17.5877]
[1728401544052,0.1070728,142.21,142.11,6.0943]
[1728401544387,7.0336,142.18,142.11,23.6859]
[1728401544554,0.1070728,142.21,142.11,23.6859]
[1728401544869,17.5821,142.19,142.11,23.6859]
[1728401545073,7.0338,142.18,142.13,7.0357]
[1728401545265,7.0343,142.17,142.12,7.0359]
[1728401545994,7.0343,142.17,142.13,7.0357]
[1728401546482,17.5814,142.2,142.11,17.5916]
[1728401546776,17.5814,142.2,142.07,6.0324]
[1728401546777,7.0365,142.12,142.08,17.5956]
[1728401546980,7.0369,142.11,142.07,13.071]
[1728401547183,17.5868,142.16,142.06,7.0391]
[1728401547357,0.12549,142.19,142.05,39.9225]
[1728401547861,0.12549,142.16,142.05,15.284]
[1728401548271,17.5873,142.15,142.06,1.40730975]
[1728401548562,7.0359,142.13,142.08,7.0382]
[1728401548870,17.5873,142.15,142.05,15.284]
[1728401548871,7.0365,142.12,142.07,24.635]
[1728401549271,17.5873,142.15,142.08,7.0382]
[1728401549467,17.5839,142.18,142.07,17.5964]
[1728401549689,7.0349,142.15,142.11,7.0366]
[1728401549871,7.0344,142.16,142.12,1.40691646]
[1728401550379,6.2735,142.2,142.11,17.5914]
[1728401550563,6.2735,142.2,142.08,54.09105335]
[1728401550564,17.584,142.18,142.08,54.09105335]
[1728401550767,17.584,142.18,142.09,7.0377]
[1728401550979,7.0352,142.15,142.1,7.0372]
[1728401551288,7.0337,142.18,142.11,18.99785312]
[1728401551582,7.0334,142.18,142.13,17.5889]
[1728401551794,7.0352,142.15,142.11,7.0367]
[1728401551960,7.0344,142.16,142.11,7.0367]
[1728401552287,0.1070728,142.18,142.1,35.184]
[1728401552496,0.1070728,142.18,142.11,1.40663969]
[1728401552991,0.1070728,142.18,142.14,24.6228]
[1728401553171,0.1070728,142.18,142.15,8.44119476]
[1728401553486,7.0343,142.16,142.11,24.1305]
[1728401553688,0.1070728,142.18,142.07,41.8314]
[1728401553899,0.1070728,142.18,142.05,15.284]
[1728401554065,7.0388,142.07,142.03,6.6376]
[1728401554265,7.0378,142.09,142.04,7.0398]
[1728401554665,17.5896,142.13,142.03,6.6376]
[1728401554867,17.5896,142.13,142.05,17.5989]
[1728401555090,7.0379,142.09,142.05,24.6386]
[1728401556085,17.5896,142.13,142.05,17.5989]
[1728401556287,17.5925,142.11,142.02,17.6027]
[1728401556586,17.5925,142.11,142.01,15.6225]
[1728401556587,7.0379,142.09,142.05,7.0396]
[1728401558166,1.2224736,142.14,142.01,69.71355335]
[1728401558367,17.5911,142.12,142.01,33.2261]
[1728401558884,7.0364,142.12,142.07,7.0386]
[1728401559087,6.0957,142.17,142.07,17.596]
[1728401559286,7.0364,142.12,142.08,7.0382]
[1728401559490,7.0369,142.11,142.07,24.6346]
[1728401559668,17.5867,142.16,142.07,24.6346]
[1728401560180,7.0361,142.13,142.08,7.0382]
[1728401560481,7.0364,142.12,142.07,17.596]
[1728401560675,7.0364,142.12,142.08,7.0381]
[1728401560870,7.0373,142.1,142.06,7.0391]
[1728401561099,7.0366,142.12,142.04,35.1988]
[1728401561286,7.0366,142.12,142.06,17.5977]
[1728401561606,23.6811,142.17,142.1,7.0371]
[1728401561894,23.6811,142.17,142.09,7.0377]
[1728401561895,7.0358,142.13,142.09,7.0377]
[1728401562390,7.0354,142.14,142.09,7.0377]
[1728401562694,7.0377,142.1,142.05,24.6381]
[1728401562994,17.5902,142.13,142.04,7.0398]
[1728401563194,17.5902,142.13,142.04,17.6002]
[1728401563495,17.5902,142.13,142.05,7.0394]
[1728401563663,17.5902,142.13,142.04,17.6002]
[1728401564775,7.0388,142.07,142.04,17.6002]
[1728401565193,17.5922,142.11,142.04,17.6002]
[1728401565687,7.0383,142.08,142.04,17.6002]
[1728401565885,7.0383,142.08,142.04,24.6404]
[1728401566082,35.1763,142.15,142.01,33.2259]
[1728401566287,6.54898,142.1,141.96,15.8233]
[1728401566492,7.0425,142.0,141.96,15.8233]
[1728401566973,17.6001,142.05,141.96,15.8233]
[1728401567297,35.1917,142.08,141.91,21.9076]
[1728401567477,7.0438,141.97,141.92,7.0458]
[1728401568190,7.0438,141.97,141.93,7.0456]
[1728401569476,35.2019,142.04,141.93,7.0456]
[1728401569684,7.0421,142.01,141.96,7.044]
[1728401569885,6.4005,142.06,141.91,21.9076]
[1728401570091,17.6061,142.0,141.92,7.0462]
[1728401570394,17.6061,142.0,141.91,21.9076]
[1728401570571,7.0438,141.97,141.92,7.0461]
[1728401570776,17.6023,142.03,141.93,1.40873044]
[1728401571310,17.6052,142.01,141.92,17.6145]
[1728401571505,17.6052,142.01,141.93,7.0456]
[1728401571677,17.6052,142.01,141.92,17.6145]
[1728401571678,7.0427,141.99,141.94,7.045]
[1728401571879,6.4005,142.06,141.92,17.6145]
[1728401571880,7.0438,141.97,141.92,24.6604]
[1728401572177,7.0449,141.95,141.91,21.9076]
[1728401572490,7.0449,141.95,141.91,15.2414]
[1728401572706,7.0443,141.96,141.92,1.40892115]
[1728401572885,7.0437,141.97,141.92,7.0458]
[1728401573084,17.6065,142.0,141.92,7.0458]
[1728401573392,17.6065,142.0,141.91,32.8575]
[1728401573575,17.6065,142.0,141.91,39.9037]
[1728401573972,7.0446,141.96,141.91,39.9037]
[1728401574179,7.0449,141.95,141.91,39.9037]
[1728401574790,7.0449,141.95,141.92,1.40892117]
[1728401575104,7.0452,141.94,141.88,17.6197]
[1728401575288,17.6111,141.96,141.87,21.5405]
[1728401575491,7.0482,141.88,141.86,10.73278237]
[1728401576390,0.25098,141.96,141.86,10.73278237]
[1728401576594,7.0487,141.87,141.86,10.73278237]
[1728401577293,17.616,141.92,141.86,10.73278237]
[1728401577496,7.0482,141.88,141.86,10.73278237]
[1728401577693,7.0487,141.87,141.86,10.73278237]
[1728401577893,13.95098,141.87,141.86,10.73278237]
[1728401578393,13.95098,141.87,141.86,6.72188237]
[1728401578898,13.82549,141.87,141.86,6.72188237]
[1728401579099,13.7,141.87,141.86,6.72188237]
[1728401579306,13.95098,141.87,141.86,6.72188237]
[1728401580093,0.25098,141.86,141.83,0.7351198]
[1728401580291,7.0501,141.84,141.83,0.7351198]
[1728401581103,1.22389271,141.86,141.83,0.7351198]
[1728401581425,7.0499,141.85,141.83,0.7351198]
[1728401581593,7.0501,141.84,141.83,0.7351198]
[1728401582299,7.0501,141.85,141.83,0.7351198]
[1728401582488,7.0501,141.84,141.83,0.7351198]
[1728401583684,1.22389271,141.86,141.83,0.7351198]
[1728401584390,8.27309271,141.86,141.83,0.7351198]
[1728401584698,1.22389271,141.86,141.85,7.0497]
[1728401585315,7.0452,141.94,141.89,7.0476]
[1728401585816,45.04068338,142.0,141.86,22.4598]
[1728401586111,9.82908338,142.0,141.9,17.6172]
[1728401586286,7.0436,141.98,141.93,7.0456]
[1728401586489,7.0456,141.94,141.88,7.0477]
[1728401586718,17.6064,142.0,141.86,22.4598]
[1728401586719,7.0476,141.9,141.86,22.4598]
[1728401586999,42.24743862,142.0,141.86,22.4598]
[1728401587000,17.6128,141.95,141.86,22.4598]
[1728401587207,7.0458,141.93,141.88,7.0481]
[1728401587391,7.0467,141.91,141.86,47.1316]
[1728401587592,17.6128,141.95,141.86,22.4598]
[1728401587809,7.0466,141.92,141.87,7.0485]
[1728401588018,17.6084,141.98,141.88,1.40938724]
[1728401588194,17.6084,141.98,141.87,17.6216]
[1728401588398,17.6114,141.96,141.87,17.6216]
[1728401588625,7.0473,141.9,141.86,22.4598]
[1728401588793,17.6114,141.96,141.86,22.4598]
[1728401588992,17.614,141.94,141.86,22.4598]
[1728401589188,17.614,141.94,141.86,16.1884]
[1728401589427,0.12549,141.91,141.83,0.7351198]
[1728401589717,0.25098,141.91,141.83,0.7351198]
[1728401589915,7.0496,141.86,141.83,0.7351198]
[1728401590120,0.25098,141.91,141.83,0.7351198]
[1728401590121,7.0497,141.85,141.83,0.7351198]
[1728401590319,0.12549,141.89,141.83,0.7351198]
[1728401590519,7.0501,141.84,141.83,0.7351198]
[1728401591399,0.12549,141.91,141.83,0.7351198]
[1728401591600,7.0501,141.84,141.83,0.7351198]
[1728401592018,17.6189,141.9,141.83,0.7351198]
[1728401592524,7.0492,141.86,141.83,0.7351198]
[1728401593513,17.6189,141.9,141.83,0.7351198]
[1728401593514,0.12549,141.85,141.83,0.7351198]
[1728401593724,7.0501,141.84,141.83,0.7351198]
[1728401595521,82.45133817,141.92,141.83,0.7351198]
[1728401595522,17.6171,141.91,141.83,0.7351198]
[1728401595720,7.0486,141.88,141.83,7.7856198]
[1728401595912,35.2324,141.92,141.83,7.7856198]
[1728401595913,17.62,141.89,141.83,0.7351198]
[1728401596112,7.0501,141.84,141.83,0.7351198]
[1728401596320,7.0501,141.84,141.83,1.98e-05]
[1728401597103,7.30108,141.84,141.83,1.98e-05]
[1728401597923,7.0501,141.84,141.83,1.98e-05]
[1728401599226,7.0571,141.7,141.69,0.8421926]
[1728401599464,0.25098,141.79,141.69,0.8421926]
[1728401599735,0.25098,141.76,141.69,0.8421926]
[1728401599913,7.0552,141.74,141.69,7.8996926]
[1728401600111,22.43425144,141.84,141.69,2.25349505]
[1728401600319,35.2571,141.82,141.7,17.642]
[1728401600520,0.12549,141.78,141.69,0.8421926]
[1728401600829,7.0562,141.72,141.69,0.8421926]
[1728401601024,7.0557,141.73,141.69,0.8421926]
[1728401601421,0.25098,141.75,141.69,0.8421926]
[1728401601732,7.0558,141.73,141.69,0.8421926]
[1728401601917,7.0562,141.72,141.69,0.8421926]
[1728401602432,0.12549,141.79,141.69,0.8421926]
[1728401602627,7.0562,141.72,141.69,0.8421926]
[1728401603012,17.6345,141.77,141.69,0.8421926]
[1728401603013,7.0568,141.71,141.69,0.8421926]
[1728401603425,7.0558,141.73,141.69,0.8421926]
[1728401603613,36.85478096,141.82,141.69,0.8421926]
[1728401603614,17.6374,141.75,141.69,0.8421926]
[1728401603926,7.0567,141.71,141.69,0.8421926]
[1728401604127,7.0571,141.7,141.69,0.8421926]
[1728401604313,7.0562,141.72,141.69,0.8421926]
[1728401604623,7.0553,141.74,141.69,7.8993926]
[1728401604826,17.6349,141.77,141.69,0.8421926]
[1728401605030,47.09344817,141.8,141.69,0.8421926]
[1728401605031,7.0557,141.73,141.69,7.8994926]
[1728401605204,7.0553,141.74,141.69,25.5427926]
[1728401605405,17.6377,141.75,141.69,0.8421926]
[1728401605625,17.6328,141.79,141.69,0.8421926]
[1728401605852,7.0545,141.76,141.69,0.8421926]
[1728401606015,7.0522,141.8,141.75,7.0545]
[1728401606220,17.6268,141.83,141.72,40.1384]
[1728401606443,7.0571,141.7,141.69,0.8421926]
[1728401606622,1.53183366,141.81,141.69,0.8421926]
[1728401606821,7.0554,141.74,141.69,0.8421926]
[1728401607026,17.6343,141.77,141.69,0.8421926]
[1728401607338,7.0558,141.73,141.69,0.8421926]
[1728401607545,17.6343,141.77,141.69,0.8421926]
[1728401607844,10.76913612,141.81,141.69,9.31064335]
[1728401607845,7.0547,141.75,141.69,9.31064335]
[1728401608347,7.0547,141.75,141.69,7.8993926]
[1728401608531,7.0552,141.74,141.69,7.8993926]
[1728401608733,28.39933612,141.81,141.7,7.057]
[1728401609031,7.0542,141.76,141.7,7.057]
[1728401609345,7.0532,141.78,141.73,7.0556]
[1728401609722,29.31252214,141.82,141.71,33.9216]
[1728401609917,1.22403321,141.82,141.71,16.2801]
[1728401610118,17.6314,141.8,141.71,16.2801]
[1728401610523,7.0551,141.75,141.71,16.2801]
[1728401610723,1.22403321,141.82,141.71,16.2801]
[1728401610950,17.6268,141.83,141.71,16.2801]
[1728401611243,7.0546,141.75,141.71,33.9215]
[1728401611448,17.6305,141.8,141.71,16.2801]
[1728401611959,7.0561,141.72,141.69,0.8421926]
[1728401612244,7.0547,141.75,141.7,7.0571]
[1728401612545,17.75879,141.78,141.69,2.25334026]
[1728401612930,17.75879,141.78,141.69,0.8421926]
[1728401613645,36.47851052,141.83,141.69,18.4852926]
[1728401613646,0.25098,141.8,141.69,18.4852926]
[1728401614146,7.0553,141.74,141.69,25.5428926]
[1728401614535,7.0553,141.74,141.69,18.4852926]
[1728401615037,7.0546,141.76,141.7,7.0569]
[1728401615235,7.0531,141.79,141.73,7.0556]
[1728401615538,53.21420688,141.83,141.66,91.70262513]
[1728401615744,7.0542,141.76,141.71,7.0566]
[1728401616049,43.76522906,141.83,141.69,17.6432]
[1728401616219,17.6281,141.82,141.72,17.6397]
[1728401616744,7.0535,141.78,141.72,24.6958]
[1728401616949,17.6281,141.82,141.72,17.6397]
[1728401617127,7.0542,141.76,141.72,17.6397]
[1728401617329,7.0541,141.76,141.72,24.6956]
[1728401617632,0.25098,141.81,141.72,17.6397]
[1728401617844,7.0532,141.78,141.73,7.0556]
[1728401618024,17.6281,141.82,141.72,17.6397]
[1728401618225,6.478,141.84,141.73,17.24146987]
[1728401618526,7.0526,141.79,141.74,7.0551]
[1728401618725,6.478,141.84,141.75,17.6364]
[1728401619151,18.84848357,141.85,141.75,17.6364]
[1728401619349,17.6246,141.85,141.76,1.41064037]
[1728401619523,7.0527,141.79,141.75,24.691]
[1728401619728,7.0527,141.79,141.75,17.6364]
[1728401619922,7.0513,141.82,141.77,7.0535]
[1728401620155,7.0512,141.82,141.78,7.0527]
[1728401620334,91.77822599,141.91,141.77,17.6333]
[1728401620540,17.6237,141.86,141.77,17.6333]
[1728401621141,7.0517,141.81,141.77,17.6333]
[1728401621333,7.0517,141.81,141.74,6.0429]
[1728401621334,7.0533,141.78,141.74,6.0429]
[1728401622055,7.0538,141.77,141.74,6.0429]
[1728401623268,17.6296,141.81,141.74,6.0429]
[1728401623558,36.46730059,141.87,141.74,6.0429]
[1728401623559,0.25098,141.83,141.74,6.0429]
[1728401623754,17.6261,141.84,141.76,7.054]
[1728401623755,7.052,141.81,141.76,7.054]
[1728401624150,36.46730059,141.87,141.74,6.0429]
[1728401624333,36.46730059,141.87,141.76,24.6888]
[1728401624536,7.0525,141.8,141.76,17.6348]
[1728401625163,6.0268,141.79,141.61,3.32733279]
[1728401625333,7.0586,141.68,141.59,40.51482513]
[1728401625655,7.62448096,141.79,141.59,7.0]
[1728401625656,0.12549,141.72,141.59,7.0]
[1728401625841,7.0591,141.67,141.59,7.0]
[1728401626038,7.0606,141.63,141.59,7.0]
[1728401626265,0.12549,141.71,141.6,1.41216932]
[1728401626470,0.12549,141.71,141.59,7.0]
[1728401626471,7.0593,141.66,141.59,7.0]
[1728401626756,0.25098,141.69,141.59,7.0]
[1728401626959,7.0614,141.62,141.59,7.0]
[1728401627134,7.0616,141.61,141.59,7.0]
[1728401627342,0.12549,141.69,141.59,7.0]
[1728401627343,7.0621,141.6,141.59,7.0]
[1728401627761,7.0611,141.62,141.59,7.0]
[1728401627964,17.6489,141.66,141.59,7.0]
[1728401628257,7.0621,141.6,141.59,7.0]
[1728401628961,0.12549,141.66,141.59,7.0]
[1728401629135,40.44059198,141.74,141.59,7.0]
[1728401629335,35.41369,141.7,141.59,7.0]
[1728401629555,35.41369,141.7,141.59,14.0624]
[1728401629734,7.0597,141.65,141.59,7.0]
[1728401629937,35.2882,141.7,141.6,7.0619]
[1728401630151,7.0591,141.66,141.61,7.0614]
[1728401630661,7.0591,141.66,141.62,1.41197117]
[1728401630847,41.3506,141.74,141.59,7.0]
[1728401631049,35.2891,141.69,141.59,7.0]
[1728401631240,7.0595,141.66,141.61,7.0616]
[1728401631444,1.59768096,141.73,141.59,7.0]
[1728401631643,1.59768096,141.73,141.62,17.6528]
[1728401631846,7.0576,141.69,141.64,7.0601]
[1728401632041,1.59768096,141.73,141.61,33.51482513]
[1728401632365,7.0571,141.7,141.65,7.0596]
[1728401632537,7.0576,141.69,141.64,24.7092]
[1728401633145,23.7115,141.74,141.64,17.6492]
[1728401633351,7.0571,141.71,141.64,17.6492]
[1728401633550,47.09344817,141.77,141.64,17.6492]
[1728401633757,17.6344,141.77,141.67,7.0586]
[1728401633944,7.0565,141.72,141.67,7.0586]
[1728401635148,17.6344,141.77,141.67,7.0586]
[1728401635356,7.0562,141.72,141.67,7.0586]
[1728401635552,7.0562,141.72,141.68,7.0581]
[1728401635739,17.6344,141.77,141.68,7.0581]
[1728401635940,17.6344,141.77,141.66,17.6468]
[1728401636264,17.6344,141.77,141.64,33.51482513]
[1728401636576,7.0553,141.74,141.68,17.6446]
[1728401636739,6.0506,141.78,141.63,7.0603]
[1728401636740,7.0582,141.68,141.63,7.0603]
[1728401636939,7.0592,141.66,141.62,34.2285]
[1728401637240,7.0591,141.66,141.62,34.2285]
[1728401637444,17.6425,141.71,141.62,34.2285]
[1728401637853,7.0587,141.67,141.62,41.2895]
[1728401638048,7.0577,141.69,141.64,7.06]
[1728401638269,7.059,141.67,141.62,41.2892]
[1728401638441,17.641,141.72,141.62,34.2285]
[1728401638774,7.0587,141.67,141.62,41.2895]
[1728401639259,17.641,141.72,141.64,7.06]
[1728401639443,7.0577,141.69,141.64,7.06]
[1728401639639,7.0571,141.7,141.66,7.059]
[1728401639858,7.0583,141.68,141.64,24.7094]
[1728401640442,0.25098,141.7,141.62,16.5765]
[1728401640658,7.0592,141.66,141.62,16.5765]
[1728401640964,8.7967446,141.75,141.62,16.5765]
[1728401640965,7.057,141.71,141.66,7.0589]
[1728401641173,7.0577,141.69,141.64,7.0597]
[1728401641468,18.86138655,141.75,141.63,17.6516]
[1728401641763,7.0571,141.7,141.65,7.0595]
[1728401641953,18.86138655,141.75,141.62,50.09132513]
[1728401642137,1.22468655,141.75,141.62,50.09132513]
[1728401642550,7.0585,141.68,141.62,67.74352513]
[1728401642750,17.6385,141.74,141.64,17.6499]
[1728401642974,7.0573,141.7,141.64,17.6499]
[1728401643149,17.6385,141.74,141.65,7.0596]
[1728401643360,7.0557,141.73,141.69,7.0576]
[1728401643661,7.0548,141.75,141.7,7.057]
[1728401644162,17.6297,141.81,141.7,17.6422]
[1728401644366,7.0537,141.77,141.73,7.0556]
[1728401644579,7.0533,141.78,141.73,7.0556]
[1728401644752,7.0537,141.77,141.72,24.6957]
[1728401645136,7.0533,141.78,141.73,7.0554]
[1728401645663,17.6321,141.79,141.71,15.7786]
[1728401645964,7.0543,141.76,141.72,7.0561]
[1728401646162,7.0537,141.77,141.72,7.0561]
[1728401646377,7.0537,141.77,141.71,33.4195]
[1728401646378,23.8682,141.82,141.73,7.0555]
[1728401646558,7.0525,141.8,141.75,7.0545]
[1728401646871,7.0517,141.81,141.76,19.04550056]
[1728401647048,7.0517,141.81,141.77,8.46414328]
[1728401647453,7.0512,141.82,141.76,17.6348]
[1728401647653,7.0512,141.82,141.78,7.0531]
[1728401647873,8.54177354,141.88,141.76,17.6348]
[1728401648166,7.0517,141.81,141.76,24.6889]
[1728401648557,7.0528,141.79,141.74,7.0549]
[1728401648745,17.6274,141.83,141.73,17.6386]
[1728401648946,17.6265,141.84,141.72,52.9202]
[1728401649146,7.0517,141.81,141.76,7.054]
[1728401649367,17.6222,141.87,141.8,7.052]
[1728401649550,17.6222,141.87,141.78,17.6319]
[1728401649952,7.0505,141.84,141.79,7.0523]
[1728401650346,7.0512,141.82,141.78,17.6319]
[1728401650963,7.0522,141.8,141.75,24.6905]
[1728401651191,17.6251,141.85,141.75,17.6359]
[1728401651474,7.0522,141.8,141.75,24.6901]
[1728401651852,7.0537,141.77,141.73,7.0551]
[1728401652047,17.6277,141.83,141.73,7.0551]
[1728401652254,17.63,141.81,141.72,17.6396]
[1728401652462,35.37659,141.84,141.71,15.7786]
[1728401652463,17.6323,141.79,141.71,15.7786]
[1728401652665,17.6373,141.75,141.64,6.5863]
[1728401653074,17.6336,141.78,141.68,7.0581]
[1728401653376,17.6361,141.76,141.64,6.5863]
[1728401653580,7.0572,141.7,141.64,24.2361]
[1728401653877,7.0568,141.71,141.66,7.059]
[1728401654248,17.6386,141.74,141.64,24.2361]
[1728401654676,7.0585,141.68,141.64,24.2361]
[1728401654851,7.0577,141.69,141.64,31.2961]
[1728401655053,7.0567,141.71,141.66,7.059]
[1728401655247,17.6345,141.77,141.66,17.6471]
[1728401655447,7.0545,141.76,141.66,33.51482513]
[1728401655673,7.0527,141.79,141.74,7.0548]
[1728401655975,7.0527,141.79,141.75,1.41074358]
[1728401656150,7.0527,141.79,141.74,7.0548]
[1728401656552,7.0522,141.8,141.75,7.0546]
[1728401657052,17.6255,141.84,141.76,7.0541]
[1728401657250,7.0513,141.82,141.77,7.0536]
[1728401657969,7.0513,141.82,141.78,7.053]
[1728401658150,7.0507,141.83,141.79,1.41032888]
[1728401658352,17.6223,141.87,141.75,7.0545]
[1728401658353,7.0527,141.79,141.75,7.0545]
[1728401658585,7.0542,141.76,141.74,6.4595]
[1728401658873,35.2444,141.87,141.74,6.4595]
[1728401658874,7.0532,141.78,141.74,6.4595]
[1728401659088,7.0537,141.77,141.74,6.4595]
[1728401659380,7.0537,141.77,141.72,24.6958]
[1728401659970,35.2539,141.83,141.7,22.0472]
[1728401659971,7.0557,141.73,141.7,22.0472]
[1728401660784,7.0566,141.71,141.7,15.5126]
[1728401660969,17.6375,141.75,141.66,24.1822]
[1728401661366,7.057,141.71,141.66,24.1822]
[1728401661564,7.057,141.71,141.66,31.2412]
[1728401661754,17.6335,141.78,141.68,17.6448]
[1728401662075,17.6335,141.78,141.71,7.0566]
[1728401662076,7.0547,141.75,141.71,7.0566]
[1728401662262,7.0547,141.75,141.68,17.6448]
[1728401662263,7.0547,141.75,141.7,7.0567]
[1728401662458,17.6335,141.78,141.68,24.7024]
[1728401662459,7.056,141.73,141.68,24.7024]
[1728401662665,17.636,141.76,141.68,17.6448]
[1728401662977,7.057,141.71,141.67,7.0585]
[1728401663170,7.0555,141.74,141.7,7.0571]
[1728401663376,41.3681,141.8,141.69,17.6434]
[1728401663377,7.056,141.73,141.69,17.6434]
[1728401663875,7.0552,141.74,141.69,24.7007]
[1728401664060,7.0557,141.73,141.69,17.6434]
[1728401664384,17.6347,141.77,141.69,24.7005]
[1728401664566,7.0552,141.74,141.69,24.7006]
[1728401664768,17.6347,141.77,141.66,24.1816]
[1728401665077,7.0567,141.71,141.67,7.0585]
[1728401665380,7.0562,141.72,141.67,7.0585]
[1728401666074,17.6347,141.77,141.66,24.1816]
[1728401666258,17.6347,141.77,141.69,7.0575]
[1728401666259,7.056,141.73,141.69,7.0575]
[1728401666466,7.0561,141.72,141.68,24.703]
[1728401666769,17.6347,141.77,141.68,24.703]
[1728401666968,7.0558,141.73,141.68,24.703]
[1728401667480,7.0563,141.72,141.68,24.703]
[1728401667959,7.0566,141.71,141.68,17.6449]
[1728401668167,7.0568,141.71,141.66,6.5346]
[1728401668566,7.0568,141.71,141.67,7.0582]
[1728401668878,17.6373,141.75,141.66,6.5346]
[1728401669385,7.0579,141.69,141.65,32.9341]
[1728401669678,0.12549,141.71,141.61,22.80080263]
[1728401669879,17.647,141.67,141.57,15.5356]
[1728401670092,7.0621,141.6,141.57,15.5356]
[1728401670254,7.0621,141.6,141.55,0.8421926]
[1728401671656,0.12549,141.66,141.55,18.5036926]
[1728401671870,0.12549,141.66,141.56,1.41244928]
[1728401672076,0.12549,141.66,141.55,7.9063926]
[1728401672384,7.0621,141.6,141.55,0.8421926]
[1728401672591,7.0611,141.62,141.55,2.25482193]
[1728401672757,7.0621,141.6,141.55,18.5033926]
[1728401672954,7.0621,141.6,141.55,0.8421926]
[1728401673378,7.31308,141.6,141.55,0.8421926]
[1728401674783,0.25098,141.59,141.51,442.51484509]
[1728401675082,7.0646,141.55,141.51,442.51484509]
[1728401675982,7.0661,141.52,141.51,442.51484509]
[1728401676386,7.31708,141.52,141.51,442.51484509]
[1728401676596,7.19159,141.52,141.51,442.51484509]
[1728401676881,17.6569,141.59,141.51,442.51484509]
[1728401677073,17.6601,141.57,141.51,442.51484509]
[1728401677274,7.0661,141.52,141.51,442.51484509]
[1728401677862,35.3113,141.6,141.51,442.51484509]
[1728401678068,7.0647,141.55,141.51,442.51484509]
[1728401678281,17.6583,141.58,141.51,442.51484509]
[1728401678784,7.0656,141.54,141.51,442.51484509]
[1728401678983,7.0661,141.52,141.51,442.51484509]
[1728401679885,7.25165002,141.6,141.51,442.51484509]
[1728401680187,17.6614,141.56,141.51,442.51484509]
[1728401680394,7.0661,141.52,141.51,442.51484509]
[1728401680693,42.56405002,141.6,141.51,442.51484509]
[1728401680901,7.0661,141.52,141.51,442.51484509]
[1728401681804,7.19159,141.52,141.51,442.51484509]
[1728401682097,6.3903,141.59,141.51,442.51484509]
[1728401682477,7.065,141.55,141.51,442.51484509]
[1728401682679,35.3121,141.6,141.51,442.51484509]
[1728401682903,7.0661,141.52,141.51,442.51484509]
[1728401683198,37.38470014,141.6,141.51,442.51484509]
[1728401683199,17.6581,141.58,141.51,442.51484509]